2CCN - Level 2 Cost Centre Name,,9CCN - Level 9 Cost Centre Name,9CCC - Level 9 Cost Centre Code,9AN - Level 9 Account Name,9AC - Level 9 Account Code,Date posted,Date of transaction,Merchant Name,Merchant City,Merchant State,Merchant Zip Code,Originating Account Name,Originating Account Number,MCC/SIC Code,MCC Description,Original Amount,Currency,Conversion Rate,Billed Amount,Debit Credit,Reference Number,Statement Cycle,Account Name
Gloucester City Council,23UE,Museum of Gloucester,MU002,Catering Provisions,3103,04/09/2017,01/09/2017,ASDA SUPERSTORE,GLOUCESTER,GBR,GL1 1DS,REDACTED,556*********2362,5411,"GROCERY STORES, SUPERMARKETS",2.96,Pound Sterling (826),1.000000000,2.96,Debit,45377757245040285253320,02/10/2017,GLOUCESTER CC
Gloucester City Council,23UE,Museum of Gloucester,MU002,Public Transport - Staff,2402,04/09/2017,02/09/2017,GWR GLOUCESTER TO,GLOUCESTER,,GL1 1DE,REDACTED,556*********2362,4112,PASSENGER RAILWAYS,39.8,Pound Sterling (826),1.000000000,39.8,Debit,55504437245161111398750,02/10/2017,GLOUCESTER CC
Gloucester City Council,23UE,Museum of Gloucester,MU002,Catering Provisions,3103,04/09/2017,02/09/2017,ASDA SUPERSTORE,GLOUCESTER,GBR,GL1 1DS,REDACTED,556*********2362,5411,"GROCERY STORES, SUPERMARKETS",2.96,Pound Sterling (826),1.000000000,2.96,Debit,15377757246040629170919,02/10/2017,GLOUCESTER CC
Gloucester City Council,23UE,Gloucester Life Museum,MU005,Catering Provisions,3103,11/09/2017,09/09/2017,ASDA SUPERSTORE,GLOUCESTER,GBR,GL1 1DS,REDACTED,556*********2362,5411,"GROCERY STORES, SUPERMARKETS",9.22,Pound Sterling (826),1.000000000,9.22,Debit,15377757253090614160151,02/10/2017,GLOUCESTER CC
Gloucester City Council,23UE,Museum of Gloucester,MU002,Catering Provisions,3103,18/09/2017,16/09/2017,ASDA SUPERSTORE,GLOUCESTER,GBR,GL1 1DS,REDACTED,556*********2362,5411,"GROCERY STORES, SUPERMARKETS",10.18,Pound Sterling (826),1.000000000,10.18,Debit,15377757260040617719538,02/10/2017,GLOUCESTER CC
Gloucester City Council,23UE,Gloucester Life Museum,MU005,Catering Provisions,3103,27/09/2017,26/09/2017,ASDA SUPERSTORE,GLOUCESTER,GBR,GL1 1DS,REDACTED,556*********2362,5411,"GROCERY STORES, SUPERMARKETS",2.96,Pound Sterling (826),1.000000000,2.96,Debit,45377757270020212462689,02/10/2017,GLOUCESTER CC
Gloucester City Council,23UE,Gloucester Life Museum,MU005,Catering Provisions,3103,02/10/2017,30/09/2017,ASDA SUPERSTORE,GLOUCESTER,GBR,GL1 1DS,REDACTED,556*********2362,5411,"GROCERY STORES, SUPERMARKETS",2.96,Pound Sterling (826),1.000000000,2.96,Debit,05377757274050604339542,02/10/2017,GLOUCESTER CC
Gloucester City Council,23UE,Countryside Unit,EP003,Vehicle Repairs and Maintenance,2103,04/09/2017,30/08/2017,P AND D ENGINEERING,TEWKESBURY,GBR,GL207EF,REDACTED,556*********6734,5599,MISCELLANEOUS AUTOMOTIVE DEALERS,137.61,Pound Sterling (826),1.000000000,137.61,Debit,55184227245942454795476,02/10/2017,GLOUCESTER CC
Gloucester City Council,23UE,Countryside Unit,EP003,General Supplies/Materials,3025,06/09/2017,05/09/2017,MIDLANDS FEATHER FLAGS,SHEFFIELD,GBR,S43 3QE,REDACTED,556*********6734,2741,MISCELLANEOUS PUBLISHING & PRINTING,182.98,Pound Sterling (826),1.000000000,182.98,Debit,25425157249060055713934,02/10/2017,GLOUCESTER CC
Gloucester City Council,23UE,Countryside Unit,EP003,Vehicle Repairs and Maintenance,2103,11/09/2017,10/09/2017,HALFORDS 0749,GLOUCESTER,GBR,GL4 3EA,REDACTED,556*********6734,5940,BICYCLE SHOPS-SALES AND SERVICE,36.98,Pound Sterling (826),1.000000000,36.98,Debit,75377757254090945502991,02/10/2017,GLOUCESTER CC
Gloucester City Council,23UE,Countryside Unit,EP003,Operative Clothing Allowances,0502,20/09/2017,19/09/2017,Amazon Prime,amzn.co.uk/pm,LUX,L2338,REDACTED,556*********6734,5968,CONTINUITY/SUBSCRIPTION MERCHANTS,7.99,Pound Sterling (826),1.000000000,7.99,Debit,55204727262100340726915,02/10/2017,GLOUCESTER CC
Gloucester City Council,23UE,Guildhall Bar & Caf�,GH005,Catering Provisions,3103,05/09/2017,04/09/2017,ICELAND,GLOUCESTER,GBR,GL1 1SA,REDACTED,556*********1155,5411,"GROCERY STORES, SUPERMARKETS",5.94,Pound Sterling (826),1.000000000,5.94,Debit,35377757248050149933494,02/10/2017,GLOUCESTER CC
Gloucester City Council,23UE,Guildhall Bar & Caf�,GH005,Catering Provisions,3103,07/09/2017,06/09/2017,ASDA SUPERSTORE,GLOUCESTER,GBR,GL1 1DS,REDACTED,556*********1155,5411,"GROCERY STORES, SUPERMARKETS",24.47,Pound Sterling (826),1.000000000,24.47,Debit,45377757250070265640586,02/10/2017,GLOUCESTER CC
Gloucester City Council,23UE,Guildhall Bar & Caf�,GH005,Catering Provisions,3103,07/09/2017,06/09/2017,ASDA SUPERSTORE,GLOUCESTER,GBR,GL1 1DS,REDACTED,556*********1155,5411,"GROCERY STORES, SUPERMARKETS",6.16,Pound Sterling (826),1.000000000,6.16,Debit,45377757250070265644570,02/10/2017,GLOUCESTER CC
Gloucester City Council,23UE,Guildhall Bar & Caf�,GH005,Catering Provisions,3103,08/09/2017,07/09/2017,ASDA SUPERSTORE,GLOUCESTER,GBR,GL1 1DS,REDACTED,556*********1155,5411,"GROCERY STORES, SUPERMARKETS",26.72,Pound Sterling (826),1.000000000,26.72,Debit,45377757251080187835411,02/10/2017,GLOUCESTER CC
Gloucester City Council,23UE,Blackfriars ,GH010,Catering Provisions,3103,11/09/2017,08/09/2017,ASDA SUPERSTORE,GLOUCESTER,GBR,GL1 1DS,REDACTED,556*********1155,5411,"GROCERY STORES, SUPERMARKETS",45.06,Pound Sterling (826),1.000000000,45.06,Debit,45377757252090250941912,02/10/2017,GLOUCESTER CC
Gloucester City Council,23UE,Guildhall Bar & Caf�,GH005,Catering Provisions,3103,11/09/2017,08/09/2017,ICELAND,GLOUCESTER,GBR,GL1 1SA,REDACTED,556*********1155,5411,"GROCERY STORES, SUPERMARKETS",4.33,Pound Sterling (826),1.000000000,4.33,Debit,45377757252090289291768,02/10/2017,GLOUCESTER CC
Gloucester City Council,23UE,Blackfriars ,GH010,Catering Provisions,3103,11/09/2017,08/09/2017,BOOKER LIMITED GLOUCES,GLOUCESTER,GBR,GL4 3RT,REDACTED,556*********1155,5811,CATERERS,46.49,Pound Sterling (826),1.000000000,46.49,Debit,55184227251892525302060,02/10/2017,GLOUCESTER CC
Gloucester City Council,23UE,Blackfriars ,GH010,Catering Provisions,3103,11/09/2017,09/09/2017,POUNDLAND LTD 1167,GLOUCESTER,,GL1 1XH,REDACTED,556*********1155,5310,DISCOUNT STORES,2,Pound Sterling (826),1.000000000,2,Debit,05230657253580077285099,02/10/2017,GLOUCESTER CC
Gloucester City Council,23UE,Blackfriars ,GH010,Equipment and Furniture,3001,11/09/2017,09/09/2017,WILKO RETAIL LIMIT,GLOUCESTER 14,,GL1 1SL,REDACTED,556*********1155,5722,HOUSEHOLD APPLIANCE STORES,4.95,Pound Sterling (826),1.000000000,4.95,Debit,05230657253550071029850,02/10/2017,GLOUCESTER CC
Gloucester City Council,23UE,Blackfriars ,GH010,Catering Provisions,3103,11/09/2017,09/09/2017,TESCO STORES (6819),GLOUCESTER,GBR,GL1 1TP,REDACTED,556*********1155,5411,"GROCERY STORES, SUPERMARKETS",2.5,Pound Sterling (826),1.000000000,2.5,Debit,25377757253090748106772,02/10/2017,GLOUCESTER CC
Gloucester City Council,23UE,Blackfriars ,GH010,Catering Provisions,3103,11/09/2017,09/09/2017,MARKS&SPENCER PLC,GLOUCESTER,GBR,GL1 1PH,REDACTED,556*********1155,5411,"GROCERY STORES, SUPERMARKETS",14,Pound Sterling (826),1.000000000,14,Debit,55377757254090802992071,02/10/2017,GLOUCESTER CC
Gloucester City Council,23UE,Blackfriars ,GH010,Catering Provisions,3103,11/09/2017,10/09/2017,TESCO STORES (6819),GLOUCESTER,GBR,GL1 1TP,REDACTED,556*********1155,5411,"GROCERY STORES, SUPERMARKETS",1.25,Pound Sterling (826),1.000000000,1.25,Debit,85377757254091061668383,02/10/2017,GLOUCESTER CC
Gloucester City Council,23UE,Blackfriars ,GH010,Catering Provisions,3103,11/09/2017,10/09/2017,BOOKER LIMITED GLOUCES,GLOUCESTER,GBR,GL4 3RT,REDACTED,556*********1155,5811,CATERERS,67.13,Pound Sterling (826),1.000000000,67.13,Debit,55184227253872549594312,02/10/2017,GLOUCESTER CC
Gloucester City Council,23UE,Blackfriars ,GH010,Catering Provisions,3103,12/09/2017,11/09/2017,ASDA SUPERSTORE,GLOUCESTER,GBR,GL1 1DS,REDACTED,556*********1155,5411,"GROCERY STORES, SUPERMARKETS",21.76,Pound Sterling (826),1.000000000,21.76,Debit,45377757255000222024850,02/10/2017,GLOUCESTER CC
Gloucester City Council,23UE,Guildhall Bar & Caf�,GH005,Catering Provisions,3103,12/09/2017,11/09/2017,ICELAND,GLOUCESTER,GBR,GL1 1SA,REDACTED,556*********1155,5411,"GROCERY STORES, SUPERMARKETS",7.92,Pound Sterling (826),1.000000000,7.92,Debit,35377757255000144958491,02/10/2017,GLOUCESTER CC
Gloucester City Council,23UE,Blackfriars ,GH010,Catering Provisions,3103,13/09/2017,12/09/2017,WM MORRISON STORE,575 GLOUCESTE,,GL1 4BD,REDACTED,556*********1155,5411,"GROCERY STORES, SUPERMARKETS",14.31,Pound Sterling (826),1.000000000,14.31,Debit,05230657256630070904886,02/10/2017,GLOUCESTER CC
Gloucester City Council,23UE,Guildhall Bar & Caf�,GH005,Catering Provisions,3103,14/09/2017,13/09/2017,BOOKER LIMITED GLOUCES,GLOUCESTER,GBR,GL4 3RT,REDACTED,556*********1155,5811,CATERERS,33.73,Pound Sterling (826),1.000000000,33.73,Debit,55184227256892572553305,02/10/2017,GLOUCESTER CC
Gloucester City Council,23UE,Blackfriars ,GH010,Catering Provisions,3103,15/09/2017,14/09/2017,ASDA SUPERSTORE,GLOUCESTER,GBR,GL1 1DS,REDACTED,556*********1155,5411,"GROCERY STORES, SUPERMARKETS",36.05,Pound Sterling (826),1.000000000,36.05,Debit,45377757258030243892289,02/10/2017,GLOUCESTER CC
Gloucester City Council,23UE,Blackfriars ,GH010,Catering Provisions,3103,18/09/2017,15/09/2017,ASDA SUPERSTORE,GLOUCESTER,GBR,GL1 1DS,REDACTED,556*********1155,5411,"GROCERY STORES, SUPERMARKETS",27.51,Pound Sterling (826),1.000000000,27.51,Debit,45377757259040194861331,02/10/2017,GLOUCESTER CC
Gloucester City Council,23UE,Guildhall Bar & Caf�,GH005,Catering Provisions,3103,18/09/2017,15/09/2017,BOOKER LIMITED GLOUCES,GLOUCESTER,GBR,GL4 3RT,REDACTED,556*********1155,5811,CATERERS,120.25,Pound Sterling (826),1.000000000,120.25,Debit,55184227258892595345554,02/10/2017,GLOUCESTER CC
Gloucester City Council,23UE,Blackfriars ,GH010,Catering Provisions,3103,18/09/2017,16/09/2017,SAINSBURYS SACAT 0771,GLOUCESTER,GBR,GL1 2AG,REDACTED,556*********1155,5411,"GROCERY STORES, SUPERMARKETS",3.89,Pound Sterling (826),1.000000000,3.89,Debit,05425157260040576373026,02/10/2017,GLOUCESTER CC
Gloucester City Council,23UE,Blackfriars ,GH010,Catering Provisions,3103,18/09/2017,16/09/2017,BOOKER LIMITED GLOUCES,GLOUCESTER,GBR,GL4 3RT,REDACTED,556*********1155,5811,CATERERS,135.8,Pound Sterling (826),1.000000000,135.8,Debit,55184227259892601363897,02/10/2017,GLOUCESTER CC
Gloucester City Council,23UE,Guildhall Bar & Caf�,GH005,Catering Provisions,3103,18/09/2017,16/09/2017,ASDA SUPERSTORE,GLOUCESTER,GBR,GL1 1DS,REDACTED,556*********1155,5411,"GROCERY STORES, SUPERMARKETS",18.45,Pound Sterling (826),1.000000000,18.45,Debit,15377757260040617726855,02/10/2017,GLOUCESTER CC
Gloucester City Council,23UE,Blackfriars ,GH010,Catering Provisions,3103,18/09/2017,16/09/2017,MARKS&SPENCER PLC,GLOUCESTER,GBR,GL1 1PH,REDACTED,556*********1155,5411,"GROCERY STORES, SUPERMARKETS",3,Pound Sterling (826),1.000000000,3,Debit,15377757260040663411261,02/10/2017,GLOUCESTER CC
Gloucester City Council,23UE,Blackfriars ,GH010,Catering Provisions,3103,18/09/2017,16/09/2017,TESCO STORES (6819),GLOUCESTER,GBR,GL1 1TP,REDACTED,556*********1155,5411,"GROCERY STORES, SUPERMARKETS",5.89,Pound Sterling (826),1.000000000,5.89,Debit,25377757260040771207345,02/10/2017,GLOUCESTER CC
Gloucester City Council,23UE,Guildhall Bar & Caf�,GH005,Catering Provisions,3103,22/09/2017,21/09/2017,ASDA SUPERSTORE,GLOUCESTER,GBR,GL1 1DS,REDACTED,556*********1155,5411,"GROCERY STORES, SUPERMARKETS",27.66,Pound Sterling (826),1.000000000,27.66,Debit,45377757265080222448125,02/10/2017,GLOUCESTER CC
Gloucester City Council,23UE,Guildhall Bar & Caf�,GH005,Catering Provisions,3103,22/09/2017,21/09/2017,MARKS&SPENCER PLC,GLOUCESTER,GBR,GL1 1PH,REDACTED,556*********1155,5411,"GROCERY STORES, SUPERMARKETS",12.4,Pound Sterling (826),1.000000000,12.4,Debit,35377757265080150502746,02/10/2017,GLOUCESTER CC
Gloucester City Council,23UE,Guildhall Bar & Caf�,GH005,Catering Provisions,3103,22/09/2017,21/09/2017,WM MORRISON STORE,575 GLOUCESTE,,GL1 4BD,REDACTED,556*********1155,5411,"GROCERY STORES, SUPERMARKETS",80.43,Pound Sterling (826),1.000000000,80.43,Debit,05230657265610078091018,02/10/2017,GLOUCESTER CC
Gloucester City Council,23UE,Guildhall Bar & Caf�,GH005,Equipment and Furniture,3001,22/09/2017,21/09/2017,WM MORRISON STORE,575 GLOUCESTE,,GL1 4BD,REDACTED,556*********1155,5411,"GROCERY STORES, SUPERMARKETS",41.36,Pound Sterling (826),1.000000000,41.36,Debit,05230657265140078100544,02/10/2017,GLOUCESTER CC
Gloucester City Council,23UE,Guildhall Bar & Caf�,GH005,Catering Provisions,3103,25/09/2017,22/09/2017,ASDA SUPERSTORE,GLOUCESTER,GBR,GL1 1DS,REDACTED,556*********1155,5411,"GROCERY STORES, SUPERMARKETS",41.08,Pound Sterling (826),1.000000000,41.08,Debit,45377757266090268472615,02/10/2017,GLOUCESTER CC
Gloucester City Council,23UE,Guildhall Bar & Caf�,GH005,Catering Provisions,3103,25/09/2017,22/09/2017,BOOKER LIMITED GLOUCES,GLOUCESTER,GBR,GL4 3RT,REDACTED,556*********1155,5811,CATERERS,43.32,Pound Sterling (826),1.000000000,43.32,Debit,55184227265892662916510,02/10/2017,GLOUCESTER CC
Gloucester City Council,23UE,Guildhall Bar & Caf�,GH005,Catering Provisions,3103,02/10/2017,29/09/2017,ASDA SUPERSTORE,GLOUCESTER,GBR,GL1 1DS,REDACTED,556*********1155,5411,"GROCERY STORES, SUPERMARKETS",20,Pound Sterling (826),1.000000000,20,Debit,35377757273050128337772,02/10/2017,GLOUCESTER CC
Gloucester City Council,23UE,Guildhall Bar & Caf�,GH005,Catering Provisions,3103,02/10/2017,29/09/2017,WM MORRISON STORE,575 GLOUCESTE,,GL1 4BD,REDACTED,556*********1155,5411,"GROCERY STORES, SUPERMARKETS",33.27,Pound Sterling (826),1.000000000,33.27,Debit,05230657273880078926907,02/10/2017,GLOUCESTER CC
Gloucester City Council,23UE,Museum of Gloucester,MU002,Public Transport - Staff,2402,05/09/2017,04/09/2017,Trainline,London,GBR,1445,REDACTED,556*********8997,4112,PASSENGER RAILWAYS,42.13,Pound Sterling (826),1.000000000,42.13,Debit,85130087247735686125159,02/10/2017,GLOUCESTER CC
Gloucester City Council,23UE,Museum of Gloucester,MU002,External Training Course Fees,0550,06/09/2017,05/09/2017,PAYPAL *ACE,35314369001,GBR,TW91EH,REDACTED,556*********8997,8398,CHARITABLE AND SOCIAL SERVICE ORGANIZATIONS,90,Pound Sterling (826),1.000000000,90,Debit,85130087248735705727315,02/10/2017,GLOUCESTER CC
Gloucester City Council,23UE,Council Streetcare Team,NE002,External Training Course Fees,0550,05/09/2017,04/09/2017,EB *SEVERN ESTUARY FOR,801-413-7200,IRL,DUBLIN 8,REDACTED,556*********3029,7399,BUSINESS SERVICES NOT ELSEWHERE CLASSIFIED,48.38,Pound Sterling (826),1.000000000,48.38,Debit,15276327248000218902116,02/10/2017,GLOUCESTER CC
Gloucester City Council,23UE,Members Support,DS002,Members Courses & Conferences/Conservative Group,3607/C202,14/09/2017,13/09/2017,TICKETS08712200260,INTERNET,GBR,NG1 2AB,REDACTED,556*********3029,7922,"THEATRICAL PRODUCERS (EXCEPT MOTION PICTURES), TICKET AGENCIES",53.5,Pound Sterling (826),1.000000000,53.5,Debit,35424517257020274272348,02/10/2017,GLOUCESTER CC
Gloucester City Council,23UE,Members Support,DS002,Public Transport - Staff,2402,14/09/2017,13/09/2017,Trainline,London,GBR,1445,REDACTED,556*********3029,4112,PASSENGER RAILWAYS,28.1,Pound Sterling (826),1.000000000,28.1,Debit,85130087256736000938481,02/10/2017,GLOUCESTER CC
Gloucester City Council,23UE,Members Support,DS002,Members Courses & Conferences/Conservative Group,3607/C202,29/09/2017,28/09/2017,WWW.WESTMINSTER-BRIEFI,LONDON SW1H,,SW1H 9BP,REDACTED,556*********3029,8244,BUSINESS AND SECRETARIAL SCHOOLS,294,Pound Sterling (826),1.000000000,294,Debit,55541967272465000517280,02/10/2017,GLOUCESTER CC
Gloucester City Council,23UE,External Communications,CM001,Advertising & Publicity,3404,02/10/2017,30/09/2017,FACEBK 8R7L5E2KW2,fb.me/ads,IRL,2,REDACTED,556*********3029,7311,ADVERTISING SERVICES,152.42,Pound Sterling (826),1.000000000,152.42,Debit,15265677273426315931238,02/10/2017,GLOUCESTER CC
Gloucester City Council,23UE,Homelessness,HS002,B&B Payments,1303,04/09/2017,01/09/2017,TRAVELODGE GB0000,THAME,,OX9 3AT,REDACTED,556*********6959,3615,TRAVELODGE,204,Pound Sterling (826),1.000000000,204,Debit,55504437244298102783334,02/10/2017,GLOUCESTER CC
Gloucester City Council,23UE,Homelessness,HS002,B&B Payments,1303,04/09/2017,30/08/2017,TRAVELODGE GB0809,GLOUCESTER,,GL1 5SF,REDACTED,556*********6959,3615,TRAVELODGE,63,Pound Sterling (826),1.000000000,63,Debit,55504437244110259285445,02/10/2017,GLOUCESTER CC
Gloucester City Council,23UE,Homelessness,HS002,B&B Payments,1303,05/09/2017,04/09/2017,TRAVELODGE GB0000,THAME,,OX9 3AT,REDACTED,556*********6959,3615,TRAVELODGE,215,Pound Sterling (826),1.000000000,215,Debit,55504437247298122024732,02/10/2017,GLOUCESTER CC
Gloucester City Council,23UE,Homelessness,HS002,B&B Payments,1303,06/09/2017,05/09/2017,TRAVELODGE GB0000,THAME,,OX9 3AT,REDACTED,556*********6959,3615,TRAVELODGE,189,Pound Sterling (826),1.000000000,189,Debit,55504437248298131149677,02/10/2017,GLOUCESTER CC
Gloucester City Council,23UE,Homelessness,HS002,B&B Payments,1303,11/09/2017,08/09/2017,TRAVELODGE GB0000,THAME,,OX9 3AT,REDACTED,556*********6959,3615,TRAVELODGE,401,Pound Sterling (826),1.000000000,401,Debit,55504437251298152727835,02/10/2017,GLOUCESTER CC
Gloucester City Council,23UE,Homelessness,HS002,B&B Payments,1303,11/09/2017,08/09/2017,TRAVELODGE GB0000,THAME,,OX9 3AT,REDACTED,556*********6959,3615,TRAVELODGE,248,Pound Sterling (826),1.000000000,248,Debit,55504437251298152635269,02/10/2017,GLOUCESTER CC
Gloucester City Council,23UE,Homelessness,HS002,B&B Payments,1303,12/09/2017,11/09/2017,TRAVELODGE GB0000,THAME,,OX9 3AT,REDACTED,556*********6959,3615,TRAVELODGE,591,Pound Sterling (826),1.000000000,591,Debit,55504437254298174716193,02/10/2017,GLOUCESTER CC
Gloucester City Council,23UE,Homelessness,HS002,B&B Payments,1303,12/09/2017,11/09/2017,TRAVELODGE GB0000,THAME,,OX9 3AT,REDACTED,556*********6959,3615,TRAVELODGE,548,Pound Sterling (826),1.000000000,548,Debit,55504437254298174730558,02/10/2017,GLOUCESTER CC
Gloucester City Council,23UE,Homelessness,HS002,B&B Payments,1303,13/09/2017,12/09/2017,TRAVELODGE GB0000,THAME,,OX9 3AT,REDACTED,556*********6959,3615,TRAVELODGE,714,Pound Sterling (826),1.000000000,714,Debit,55504437255298182161480,02/10/2017,GLOUCESTER CC
Gloucester City Council,23UE,Homelessness,HS002,B&B Payments,1303,14/09/2017,13/09/2017,TRAVELODGE GB0000,THAME,,OX9 3AT,REDACTED,556*********6959,3615,TRAVELODGE,-522,Pound Sterling (826),1.000000000,-522,Credit,55504437256295368563470,02/10/2017,GLOUCESTER CC
Gloucester City Council,23UE,Homelessness,HS002,B&B Payments,1303,15/09/2017,14/09/2017,TRAVELODGE GB0000,THAME,,OX9 3AT,REDACTED,556*********6959,3615,TRAVELODGE,334,Pound Sterling (826),1.000000000,334,Debit,55504437257298196591787,02/10/2017,GLOUCESTER CC
Gloucester City Council,23UE,Homelessness,HS002,B&B Payments,1303,18/09/2017,15/09/2017,TRAVELODGE GB0000,THAME,,OX9 3AT,REDACTED,556*********6959,3615,TRAVELODGE,275,Pound Sterling (826),1.000000000,275,Debit,55504437258298103826218,02/10/2017,GLOUCESTER CC
Gloucester City Council,23UE,Homelessness,HS002,B&B Payments,1303,19/09/2017,18/09/2017,TRAVELODGE GB0000,THAME,,OX9 3AT,REDACTED,556*********6959,3615,TRAVELODGE,235,Pound Sterling (826),1.000000000,235,Debit,55504437261298124760722,02/10/2017,GLOUCESTER CC
Gloucester City Council,23UE,Homelessness,HS002,B&B Payments,1303,19/09/2017,18/09/2017,TRAVELODGE GB0000,THAME,,OX9 3AT,REDACTED,556*********6959,3615,TRAVELODGE,566,Pound Sterling (826),1.000000000,566,Debit,55504437261298124690812,02/10/2017,GLOUCESTER CC
Gloucester City Council,23UE,Homelessness,HS002,B&B Payments,1303,19/09/2017,18/09/2017,TRAVELODGE GB0000,THAME,,OX9 3AT,REDACTED,556*********6959,3615,TRAVELODGE,306,Pound Sterling (826),1.000000000,306,Debit,55504437261298124671317,02/10/2017,GLOUCESTER CC
Gloucester City Council,23UE,Homelessness,HS002,B&B Payments,1303,20/09/2017,19/09/2017,TRAVELODGE GB0000,THAME,,OX9 3AT,REDACTED,556*********6959,3615,TRAVELODGE,130,Pound Sterling (826),1.000000000,130,Debit,55504437262298132063779,02/10/2017,GLOUCESTER CC
Gloucester City Council,23UE,Homelessness,HS002,B&B Payments,1303,20/09/2017,19/09/2017,TRAVELODGE GB0000,THAME,,OX9 3AT,REDACTED,556*********6959,3615,TRAVELODGE,176,Pound Sterling (826),1.000000000,176,Debit,55504437262298131965909,02/10/2017,GLOUCESTER CC
Gloucester City Council,23UE,Homelessness,HS002,B&B Payments,1303,20/09/2017,19/09/2017,TRAVELODGE GB0000,THAME,,OX9 3AT,REDACTED,556*********6959,3615,TRAVELODGE,120,Pound Sterling (826),1.000000000,120,Debit,55504437262298132064793,02/10/2017,GLOUCESTER CC
Gloucester City Council,23UE,Homelessness,HS002,B&B Payments,1303,21/09/2017,20/09/2017,TRAVELODGE GB0000,THAME,,OX9 3AT,REDACTED,556*********6959,3615,TRAVELODGE,-237,Pound Sterling (826),1.000000000,-237,Credit,55504437263295311272949,02/10/2017,GLOUCESTER CC
Gloucester City Council,23UE,Homelessness,HS002,B&B Payments,1303,22/09/2017,21/09/2017,TRAVELODGE GB0000,THAME,,OX9 3AT,REDACTED,556*********6959,3615,TRAVELODGE,524,Pound Sterling (826),1.000000000,524,Debit,55504437264298145499604,02/10/2017,GLOUCESTER CC
Gloucester City Council,23UE,Homelessness,HS002,B&B Payments,1303,22/09/2017,21/09/2017,TRAVELODGE GB0000,THAME,,OX9 3AT,REDACTED,556*********6959,3615,TRAVELODGE,329,Pound Sterling (826),1.000000000,329,Debit,55504437264298145501201,02/10/2017,GLOUCESTER CC
Gloucester City Council,23UE,Homelessness,HS002,B&B Payments,1303,22/09/2017,21/09/2017,TRAVELODGE GB0000,THAME,,OX9 3AT,REDACTED,556*********6959,3615,TRAVELODGE,263,Pound Sterling (826),1.000000000,263,Debit,55504437264298145502506,02/10/2017,GLOUCESTER CC
Gloucester City Council,23UE,Homelessness,HS002,B&B Payments,1303,22/09/2017,21/09/2017,TRAVELODGE GB0000,THAME,,OX9 3AT,REDACTED,556*********6959,3615,TRAVELODGE,475,Pound Sterling (826),1.000000000,475,Debit,55504437264298145541215,02/10/2017,GLOUCESTER CC
Gloucester City Council,23UE,Homelessness,HS002,B&B Payments,1303,22/09/2017,21/09/2017,TRAVELODGE GB0000,THAME,,OX9 3AT,REDACTED,556*********6959,3615,TRAVELODGE,51,Pound Sterling (826),1.000000000,51,Debit,55504437264298145598751,02/10/2017,GLOUCESTER CC
Gloucester City Council,23UE,Homelessness,HS002,B&B Payments,1303,25/09/2017,22/09/2017,TRAVELODGE GB0000,THAME,,OX9 3AT,REDACTED,556*********6959,3615,TRAVELODGE,203,Pound Sterling (826),1.000000000,203,Debit,55504437265298151961207,02/10/2017,GLOUCESTER CC
Gloucester City Council,23UE,Homelessness,HS002,B&B Payments,1303,26/09/2017,25/09/2017,TRAVELODGE GB0000,THAME,,OX9 3AT,REDACTED,556*********6959,3615,TRAVELODGE,495,Pound Sterling (826),1.000000000,495,Debit,55504437268298172398386,02/10/2017,GLOUCESTER CC
Gloucester City Council,23UE,Homelessness,HS002,B&B Payments,1303,26/09/2017,25/09/2017,TRAVELODGE GB0000,THAME,,OX9 3AT,REDACTED,556*********6959,3615,TRAVELODGE,539,Pound Sterling (826),1.000000000,539,Debit,55504437268298172397164,02/10/2017,GLOUCESTER CC
Gloucester City Council,23UE,Homelessness,HS002,B&B Payments,1303,26/09/2017,25/09/2017,TRAVELODGE GB0000,THAME,,OX9 3AT,REDACTED,556*********6959,3615,TRAVELODGE,77,Pound Sterling (826),1.000000000,77,Debit,55504437268298172511152,02/10/2017,GLOUCESTER CC
Gloucester City Council,23UE,Homelessness,HS002,B&B Payments,1303,27/09/2017,26/09/2017,TRAVELODGE GB0000,THAME,,OX9 3AT,REDACTED,556*********6959,3615,TRAVELODGE,684,Pound Sterling (826),1.000000000,684,Debit,55504437269298181189296,02/10/2017,GLOUCESTER CC
Gloucester City Council,23UE,Homelessness,HS002,B&B Payments,1303,27/09/2017,26/09/2017,TRAVELODGE GB0000,THAME,,OX9 3AT,REDACTED,556*********6959,3615,TRAVELODGE,168,Pound Sterling (826),1.000000000,168,Debit,55504437269298181219044,02/10/2017,GLOUCESTER CC
Gloucester City Council,23UE,Homelessness,HS002,B&B Payments,1303,02/10/2017,29/09/2017,TRAVELODGE GB0000,THAME,,OX9 3AT,REDACTED,556*********6959,3615,TRAVELODGE,238,Pound Sterling (826),1.000000000,238,Debit,55504437272298103376620,02/10/2017,GLOUCESTER CC
Gloucester City Council,23UE,Homelessness,HS002,B&B Payments,1303,02/10/2017,29/09/2017,TRAVELODGE GB0000,THAME,,OX9 3AT,REDACTED,556*********6959,3615,TRAVELODGE,470,Pound Sterling (826),1.000000000,470,Debit,55504437272298103250155,02/10/2017,GLOUCESTER CC
Gloucester City Council,23UE,Blackfriars ,GH010,Catering Provisions,3103,08/09/2017,07/09/2017,TESCO STORES 6819,GLOUCESTER,GBR,GL1 1TP,REDACTED,556*********5661,5411,"GROCERY STORES, SUPERMARKETS",3.65,Pound Sterling (826),1.000000000,3.65,Debit,55377757251080321669436,02/10/2017,GLOUCESTER CC
Gloucester City Council,23UE,Blackfriars ,GH010,Catering Provisions,3103,08/09/2017,07/09/2017,B&M RETAIL LTD,HS GLOUCESTER,,GL1 2DH,REDACTED,556*********5661,5310,DISCOUNT STORES,4.99,Pound Sterling (826),1.000000000,4.99,Debit,05230657251730076604442,02/10/2017,GLOUCESTER CC
Gloucester City Council,23UE,Members Support,DS002,Members Travel Expenses,3609,06/09/2017,05/09/2017,Trainline,London,GBR,1445,REDACTED,556*********3822,4112,PASSENGER RAILWAYS,90.88,Pound Sterling (826),1.000000000,90.88,Debit,85130087248735727870978,02/10/2017,GLOUCESTER CC
Gloucester City Council,23UE,Managing Director & Directors,MT001,Public Transport - Staff,2402,06/09/2017,05/09/2017,Trainline,London,GBR,1445,REDACTED,556*********3822,4112,PASSENGER RAILWAYS,56.92,Pound Sterling (826),1.000000000,56.92,Debit,85130087248735727868055,02/10/2017,GLOUCESTER CC
Gloucester City Council,23UE,Homelessness Prevention,HS003,Mileage and Travel Allowances,2401,22/09/2017,21/09/2017,Trainline,London,GBR,1445,REDACTED,556*********3822,4112,PASSENGER RAILWAYS,163.91,Pound Sterling (826),1.000000000,163.91,Debit,85130087264737274648780,02/10/2017,GLOUCESTER CC
Gloucester City Council,23UE,Cemeteries,CC004,Vehicle Repairs and Maintenance,2103,27/09/2017,26/09/2017,DVLA VEHICLE TAX,0300 1234321,,SA6 7JL,REDACTED,556*********3822,9399,GOVERNMENT SERVICES NOT ELSEWHERE CLASSIFIED,242.5,Pound Sterling (826),1.000000000,242.5,Debit,05230657270450075501187,02/10/2017,GLOUCESTER CC
Gloucester City Council,23UE,Gloucester Life Museum,MU005,Equipment and Furniture,3001,04/09/2017,01/09/2017,PAYPAL *EBUYER UK,35314369001,GBR,DN147UW,REDACTED,556*********8256,5732,ELECTRONIC SALES,146.87,Pound Sterling (826),1.000000000,146.87,Debit,85130087244734586788284,02/10/2017,GLOUCESTER CC
Gloucester City Council,23UE,Guildhall Cinema,GH003,Advertising & Publicity,3404,06/09/2017,05/09/2017,WWW.INSTANTPRINT.C,01709 382202,,S63 5DR,REDACTED,556*********8256,7338,QUICK-COPY AND REPRODUCTION SERVICES,185,Pound Sterling (826),1.000000000,185,Debit,05230657249110078185903,02/10/2017,GLOUCESTER CC
Gloucester City Council,23UE,Guildhall Events,GH002,Advertising & Publicity,3404,07/09/2017,06/09/2017,WWW.INSTANTPRINT.C,01709 382202,,S63 5DR,REDACTED,556*********8256,7338,QUICK-COPY AND REPRODUCTION SERVICES,101.99,Pound Sterling (826),1.000000000,101.99,Debit,05230657250830077378250,02/10/2017,GLOUCESTER CC
Gloucester City Council,23UE,Guildhall Events,GH002,Advertising & Publicity,3404,08/09/2017,07/09/2017,WWW.INSTANTPRINT.C,01709 382202,,S63 5DR,REDACTED,556*********8256,7338,QUICK-COPY AND REPRODUCTION SERVICES,206,Pound Sterling (826),1.000000000,206,Debit,05230657251880076732923,02/10/2017,GLOUCESTER CC
Gloucester City Council,23UE,Guildhall Bar & Caf�,GH005,Catering Provisions,3103,08/09/2017,07/09/2017,ICELAND,GLOUCESTER,GBR,GL1 1SA,REDACTED,556*********8256,5411,"GROCERY STORES, SUPERMARKETS",5.45,Pound Sterling (826),1.000000000,5.45,Debit,35377757251080135176976,02/10/2017,GLOUCESTER CC
Gloucester City Council,23UE,Guildhall Events,GH002,Professional Membership & Subscriptions,3403,08/09/2017,07/09/2017,PAYPAL *MUSEUMSASSC,35314369001,GBR,EC1R0AZ,REDACTED,556*********8256,8398,CHARITABLE AND SOCIAL SERVICE ORGANIZATIONS,125,Pound Sterling (826),1.000000000,125,Debit,85130087250735775538076,02/10/2017,GLOUCESTER CC
Gloucester City Council,23UE,Museum of Gloucester,MU002,Mileage and Travel Allowances,2401,11/09/2017,08/09/2017,FLYBEDLPY DLPYTE/26740759,PAYPAL COM,GBR,ex52hl,REDACTED,556*********8256,4511,"AIRLINES, AIR CARRIERS",158.56,Pound Sterling (826),1.000000000,158.56,Debit,85353397251735750679483,02/10/2017,GLOUCESTER CC
Gloucester City Council,23UE,Guildhall Events,GH002,Advertising & Publicity,3404,18/09/2017,14/09/2017,WORDPRESS V0BAZP0R1D,8772733049,CA,94110,REDACTED,556*********8256,7372,COMPUTER AND DATA PROCESSING SERVICES,30,Pound Sterling (826),1.000000000,30,Debit,55429507257637549705754,02/10/2017,GLOUCESTER CC
Gloucester City Council,23UE,Guildhall Events,GH002,Advertising & Publicity,3404,18/09/2017,16/09/2017,FACEBK FN6LNDWKR2,fb.me/ads,IRL,2,REDACTED,556*********8256,7311,ADVERTISING SERVICES,20.08,Pound Sterling (826),1.000000000,20.08,Debit,15265677258837743941533,02/10/2017,GLOUCESTER CC
Gloucester City Council,23UE,Blackfriars ,GH010,Catering Provisions,3103,18/09/2017,16/09/2017,B&M RETAIL LTD,HS GLOUCESTER,,GL1 2DH,REDACTED,556*********8256,5310,DISCOUNT STORES,27.98,Pound Sterling (826),1.000000000,27.98,Debit,05230657260080070227447,02/10/2017,GLOUCESTER CC
Gloucester City Council,23UE,Blackfriars ,GH010,Catering Provisions,3103,18/09/2017,16/09/2017,B&M RETAIL LTD,HS GLOUCESTER,,GL1 2DH,REDACTED,556*********8256,5310,DISCOUNT STORES,1.49,Pound Sterling (826),1.000000000,1.49,Debit,05230657260090070227495,02/10/2017,GLOUCESTER CC
Gloucester City Council,23UE,Blackfriars ,GH010,Catering Provisions,3103,18/09/2017,16/09/2017,MARKS&SPENCER PLC,GLOUCESTER,GBR,GL1 1PH,REDACTED,556*********8256,5411,"GROCERY STORES, SUPERMARKETS",17.6,Pound Sterling (826),1.000000000,17.6,Debit,15377757260040663295243,02/10/2017,GLOUCESTER CC
Gloucester City Council,23UE,Blackfriars ,GH010,Catering Provisions,3103,18/09/2017,16/09/2017,TESCO STORES (6819),GLOUCESTER,GBR,GL1 1TP,REDACTED,556*********8256,5411,"GROCERY STORES, SUPERMARKETS",11.74,Pound Sterling (826),1.000000000,11.74,Debit,25377757260040771207360,02/10/2017,GLOUCESTER CC
Gloucester City Council,23UE,Museum of Gloucester,MU002,Mileage and Travel Allowances,2401,19/09/2017,17/09/2017,PAYPAL *AEROCARS,35314369001,GBR,TW91EH,REDACTED,556*********8256,4121,TAXICABS/LIMOUSINES,68,Pound Sterling (826),1.000000000,68,Debit,85130087261737138329513,02/10/2017,GLOUCESTER CC
Gloucester City Council,23UE,Museum of Gloucester,MU002,Mileage and Travel Allowances,2401,21/09/2017,20/09/2017,LOTHIAN BUSES LTD,01314 750110,,EH7 4AZ,REDACTED,556*********8256,4131,"BUS LINES, CHARTERS, TOUR BUSES",7.5,Pound Sterling (826),1.000000000,7.5,Debit,05230657264360062368839,02/10/2017,GLOUCESTER CC
Gloucester City Council,23UE,Guildhall Events,GH002,Professional Advice/Consultants Fees,3952,22/09/2017,21/09/2017,MIPERMIT PARKING-DOM,INTERNET,GBR,SN15 5FD,REDACTED,556*********8256,7523,AUTOMOBILE PARKING LOTS AND GARAGES,110,Pound Sterling (826),1.000000000,110,Debit,25425157265080108309851,02/10/2017,GLOUCESTER CC
Gloucester City Council,23UE,Guildhall Events,GH002,Professional Advice/Consultants Fees,3952,22/09/2017,21/09/2017,MIPERMIT PARKING-DOM,INTERNET,GBR,SN15 5FD,REDACTED,556*********8256,7523,AUTOMOBILE PARKING LOTS AND GARAGES,10,Pound Sterling (826),1.000000000,10,Debit,25425157265080108309588,02/10/2017,GLOUCESTER CC
Gloucester City Council,23UE,Gloucester Guildhall,GH001,Equipment and Furniture,3001,22/09/2017,21/09/2017,AMAZON UK RETAIL AMAZO,AMAZON.CO.UK,LUX,,REDACTED,556*********8256,5999,MISCELLANEOUS AND RETAIL STORES,9.05,Pound Sterling (826),1.000000000,9.05,Debit,85389247264737090443273,02/10/2017,GLOUCESTER CC
Gloucester City Council,23UE,Guildhall Events,GH002,Professional Advice/Consultants Fees,3952,25/09/2017,23/09/2017,MIPERMIT PARKING-DOM,INTERNET,GBR,SN15 5FD,REDACTED,556*********8256,7523,AUTOMOBILE PARKING LOTS AND GARAGES,10,Pound Sterling (826),1.000000000,10,Debit,95425157267090493590826,02/10/2017,GLOUCESTER CC
Gloucester City Council,23UE,Guildhall Events,GH002,Professional Advice/Consultants Fees,3952,25/09/2017,23/09/2017,MIPERMIT PARKING-DOM,INTERNET,GBR,SN15 5FD,REDACTED,556*********8256,7523,AUTOMOBILE PARKING LOTS AND GARAGES,10,Pound Sterling (826),1.000000000,10,Debit,95425157267090493590834,02/10/2017,GLOUCESTER CC
Gloucester City Council,23UE,Guildhall Events,GH002,Professional Advice/Consultants Fees,3952,25/09/2017,23/09/2017,MIPERMIT PARKING-DOM,INTERNET,GBR,SN15 5FD,REDACTED,556*********8256,7523,AUTOMOBILE PARKING LOTS AND GARAGES,10,Pound Sterling (826),1.000000000,10,Debit,95425157267090493590859,02/10/2017,GLOUCESTER CC
Gloucester City Council,23UE,Guildhall Events,GH002,Professional Advice/Consultants Fees,3952,25/09/2017,23/09/2017,MIPERMIT PARKING-DOM,INTERNET,GBR,SN15 5FD,REDACTED,556*********8256,7523,AUTOMOBILE PARKING LOTS AND GARAGES,10,Pound Sterling (826),1.000000000,10,Debit,95425157267090493590867,02/10/2017,GLOUCESTER CC
Gloucester City Council,23UE,Guildhall Events,GH002,Professional Advice/Consultants Fees,3952,25/09/2017,23/09/2017,MIPERMIT PARKING-DOM,INTERNET,GBR,SN15 5FD,REDACTED,556*********8256,7523,AUTOMOBILE PARKING LOTS AND GARAGES,10,Pound Sterling (826),1.000000000,10,Debit,95425157267090493591196,02/10/2017,GLOUCESTER CC
Gloucester City Council,23UE,Guildhall Events,GH002,Professional Advice/Consultants Fees,3952,25/09/2017,23/09/2017,MIPERMIT PARKING-DOM,INTERNET,GBR,SN15 5FD,REDACTED,556*********8256,7523,AUTOMOBILE PARKING LOTS AND GARAGES,10,Pound Sterling (826),1.000000000,10,Debit,95425157267090493591337,02/10/2017,GLOUCESTER CC
Gloucester City Council,23UE,Guildhall Events,GH002,Professional Advice/Consultants Fees,3952,25/09/2017,23/09/2017,MIPERMIT PARKING-DOM,INTERNET,GBR,SN15 5FD,REDACTED,556*********8256,7523,AUTOMOBILE PARKING LOTS AND GARAGES,10,Pound Sterling (826),1.000000000,10,Debit,95425157267090493591493,02/10/2017,GLOUCESTER CC
Gloucester City Council,23UE,Guildhall Events,GH002,Catering Provisions,3103,25/09/2017,23/09/2017,WM MORRISON STORE,575 GLOUCESTE,,GL1 4BD,REDACTED,556*********8256,5411,"GROCERY STORES, SUPERMARKETS",26.63,Pound Sterling (826),1.000000000,26.63,Debit,05230657267760070274357,02/10/2017,GLOUCESTER CC
Gloucester City Council,23UE,Guildhall Events,GH002,Catering Provisions,3103,25/09/2017,23/09/2017,ASDA SUPERSTORE,GLOUCESTER,GBR,GL1 1DS,REDACTED,556*********8256,5411,"GROCERY STORES, SUPERMARKETS",154.2,Pound Sterling (826),1.000000000,154.2,Debit,15377757267090597840401,02/10/2017,GLOUCESTER CC
Gloucester City Council,23UE,Guildhall Events,GH002,Professional Advice/Consultants Fees,3952,25/09/2017,24/09/2017,MIPERMIT PARKING-DOM,INTERNET,GBR,SN15 5FD,REDACTED,556*********8256,7523,AUTOMOBILE PARKING LOTS AND GARAGES,20,Pound Sterling (826),1.000000000,20,Debit,75425157268090876562419,02/10/2017,GLOUCESTER CC
Gloucester City Council,23UE,Guildhall Events,GH002,Professional Advice/Consultants Fees,3952,25/09/2017,24/09/2017,MIPERMIT PARKING-DOM,INTERNET,GBR,SN15 5FD,REDACTED,556*********8256,7523,AUTOMOBILE PARKING LOTS AND GARAGES,10,Pound Sterling (826),1.000000000,10,Debit,75425157268090876562443,02/10/2017,GLOUCESTER CC
Gloucester City Council,23UE,Guildhall Events,GH002,Professional Advice/Consultants Fees,3952,25/09/2017,24/09/2017,MIPERMIT PARKING-DOM,INTERNET,GBR,SN15 5FD,REDACTED,556*********8256,7523,AUTOMOBILE PARKING LOTS AND GARAGES,10,Pound Sterling (826),1.000000000,10,Debit,75425157268090876562591,02/10/2017,GLOUCESTER CC
Gloucester City Council,23UE,Guildhall Events,GH002,Professional Advice/Consultants Fees,3952,25/09/2017,24/09/2017,MIPERMIT PARKING-DOM,INTERNET,GBR,SN15 5FD,REDACTED,556*********8256,7523,AUTOMOBILE PARKING LOTS AND GARAGES,10,Pound Sterling (826),1.000000000,10,Debit,75425157268090876562740,02/10/2017,GLOUCESTER CC
Gloucester City Council,23UE,Guildhall Bar & Caf�,GH005,Catering Provisions,3103,25/09/2017,24/09/2017,WM MORRISON STORE,575 GLOUCESTE,,GL1 4BD,REDACTED,556*********8256,5411,"GROCERY STORES, SUPERMARKETS",53.19,Pound Sterling (826),1.000000000,53.19,Debit,05230657268040072719405,02/10/2017,GLOUCESTER CC
Gloucester City Council,23UE,Gloucester Guildhall,GH001,Equipment and Furniture,3001,26/09/2017,25/09/2017,PAYPAL *KICKTEK LTD,35314369001,GBR,RG189HQ,REDACTED,556*********8256,5732,ELECTRONIC SALES,122.97,Pound Sterling (826),1.000000000,122.97,Debit,85130087268738384136613,02/10/2017,GLOUCESTER CC
Gloucester City Council,23UE,Guildhall Bar & Caf�,GH005,Catering Provisions,3103,27/09/2017,26/09/2017,ICELAND,GLOUCESTER,GBR,GL1 1SA,REDACTED,556*********8256,5411,"GROCERY STORES, SUPERMARKETS",3.96,Pound Sterling (826),1.000000000,3.96,Debit,25377757270020088974926,02/10/2017,GLOUCESTER CC
Gloucester City Council,23UE,Guildhall Bar & Caf�,GH005,Catering Provisions,3103,27/09/2017,26/09/2017,TESCO STORES 5363,GLOUCESTER,GBR,GL3 4AA,REDACTED,556*********8256,5411,"GROCERY STORES, SUPERMARKETS",25.5,Pound Sterling (826),1.000000000,25.5,Debit,55377757270020334378432,02/10/2017,GLOUCESTER CC
Gloucester City Council,23UE,Guildhall Events,GH002,Professional Advice/Consultants Fees,3952,28/09/2017,27/09/2017,MIPERMIT PARKING-DOM,INTERNET,GBR,SN15 5FD,REDACTED,556*********8256,7523,AUTOMOBILE PARKING LOTS AND GARAGES,10,Pound Sterling (826),1.000000000,10,Debit,25425157271030107277890,02/10/2017,GLOUCESTER CC
Gloucester City Council,23UE,Guildhall Cinema,GH003,Equipment and Furniture,3001,29/09/2017,28/09/2017,POST OFFICE COUNTER,GLOUCESTER,,GL1 1AD,REDACTED,556*********8256,9402,POSTAGE STAMPS,7.25,Pound Sterling (826),1.000000000,7.25,Debit,55504437271194202087765,02/10/2017,GLOUCESTER CC
Gloucester City Council,23UE,Guildhall Events,GH002,Professional Advice/Consultants Fees,3952,29/09/2017,28/09/2017,MIPERMIT PARKING-DOM,INTERNET,GBR,SN15 5FD,REDACTED,556*********8256,7523,AUTOMOBILE PARKING LOTS AND GARAGES,10,Pound Sterling (826),1.000000000,10,Debit,25425157272040131267022,02/10/2017,GLOUCESTER CC
Gloucester City Council,23UE,Tourist Information Centre,TI002,Equipment and Furniture,3001,29/09/2017,28/09/2017,Amazon UK Marketplace,800-279-6620,LUX,L2338,REDACTED,556*********8256,5942,BOOK STORES,18.33,Pound Sterling (826),1.000000000,18.33,Debit,55204727271100686599594,02/10/2017,GLOUCESTER CC
Gloucester City Council,23UE,Guildhall Events,GH002,Advertising & Publicity,3404,29/09/2017,28/09/2017,WWW.INSTANTPRINT.C,01709 382202,,S63 5DR,REDACTED,556*********8256,7338,QUICK-COPY AND REPRODUCTION SERVICES,23.99,Pound Sterling (826),1.000000000,23.99,Debit,05230657272190077307294,02/10/2017,GLOUCESTER CC
Gloucester City Council,23UE,Guildhall Events,GH002,Professional Advice/Consultants Fees,3952,02/10/2017,29/09/2017,MIPERMIT PARKING-DOM,INTERNET,GBR,SN15 5FD,REDACTED,556*********8256,7523,AUTOMOBILE PARKING LOTS AND GARAGES,10,Pound Sterling (826),1.000000000,10,Debit,25425157273050095200769,02/10/2017,GLOUCESTER CC
Gloucester City Council,23UE,Guildhall Events,GH002,Advertising & Publicity,3404,02/10/2017,29/09/2017,WWW.INSTANTPRINT.C,01709 382202,,S63 5DR,REDACTED,556*********8256,7338,QUICK-COPY AND REPRODUCTION SERVICES,239,Pound Sterling (826),1.000000000,239,Debit,05230657273240077656965,02/10/2017,GLOUCESTER CC
Gloucester City Council,23UE,Guildhall Events,GH002,Advertising & Publicity,3404,02/10/2017,30/09/2017,FACEBK PFFKPD2LR2,fb.me/ads,IRL,2,REDACTED,556*********8256,7311,ADVERTISING SERVICES,20.8,Pound Sterling (826),1.000000000,20.8,Debit,15265677273403913971239,02/10/2017,GLOUCESTER CC
Gloucester City Council,23UE,Guildhall Events,GH002,Advertising & Publicity,3404,02/10/2017,30/09/2017,FACEBK 2M4TSDS5M2,fb.me/ads,IRL,2,REDACTED,556*********8256,7311,ADVERTISING SERVICES,55.58,Pound Sterling (826),1.000000000,55.58,Debit,15265677273585708491538,02/10/2017,GLOUCESTER CC
Gloucester City Council,23UE,Guildhall Events,GH002,Advertising & Publicity,3404,02/10/2017,30/09/2017,FACEBK 6M4TSDS5M2,fb.me/ads,IRL,2,REDACTED,556*********8256,7311,ADVERTISING SERVICES,73.68,Pound Sterling (826),1.000000000,73.68,Debit,15265677273585695631542,02/10/2017,GLOUCESTER CC
Gloucester City Council,23UE,Blackfriars ,GH010,Catering Provisions,3103,02/10/2017,30/09/2017,TESCO STORES (6819),GLOUCESTER,GBR,GL1 1TP,REDACTED,556*********8256,5411,"GROCERY STORES, SUPERMARKETS",11.34,Pound Sterling (826),1.000000000,11.34,Debit,15377757274050823393097,02/10/2017,GLOUCESTER CC
Gloucester City Council,23UE,Homelessness Prevention,FL002,External Training Course Fees,0550,07/09/2017,05/09/2017,PREMIER INN 44537145,BUXTON,,SK17 9NW,REDACTED,556*********3063,3811,PREMIER INN,53.5,Pound Sterling (826),1.000000000,53.5,Debit,55541967250529000188164,02/10/2017,GLOUCESTER CC
Gloucester City Council,23UE,Business Transformation,BI006,Equipment and Furniture,3001,11/09/2017,08/09/2017,Amazon UK Marketplace,800-279-6620,LUX,L2338,REDACTED,556*********3063,5942,BOOK STORES,13.98,Pound Sterling (826),1.000000000,13.98,Debit,55204727251100364665836,02/10/2017,GLOUCESTER CC
Gloucester City Council,23UE,Vehicles,CT002,Hire of Vehicles/Plant,2301,13/09/2017,12/09/2017,ENTERPRISE,01452 419222,,GL2 5HY,REDACTED,556*********3063,3405,ENTERPRISE RENT-A-CAR,380.02,Pound Sterling (826),1.000000000,380.02,Debit,05230657255300071006609,02/10/2017,GLOUCESTER CC
Gloucester City Council,23UE,Civica Admin Charges,BI002,Professional Advice/Consultants Fees,3952,13/09/2017,12/09/2017,HMCOURTS-SERVICE.G,01452420100,,GL1 2ZG,REDACTED,556*********3063,9222,FINES,2691,Pound Sterling (826),1.000000000,2691,Debit,05230657256600075263984,02/10/2017,GLOUCESTER CC
Gloucester City Council,23UE,Financial Services,FS004,Public Transport - Staff,2402,13/09/2017,12/09/2017,GWR WEBSALES,SWINDON,,SN1 1HL,REDACTED,556*********3063,4112,PASSENGER RAILWAYS,39.8,Pound Sterling (826),1.000000000,39.8,Debit,55504437255160362953559,02/10/2017,GLOUCESTER CC
Gloucester City Council,23UE,Financial Services,FS004,Public Transport - Staff,2402,14/09/2017,13/09/2017,Virgin Trains,London,GBR,1445,REDACTED,556*********3063,4112,PASSENGER RAILWAYS,143,Pound Sterling (826),1.000000000,143,Debit,85130087256736001378026,02/10/2017,GLOUCESTER CC
Gloucester City Council,23UE,Vehicles,CT002,Hire of Vehicles/Plant,2301,15/09/2017,14/09/2017,ENTERPRISE,01452 419222,,GL2 5HY,REDACTED,556*********3063,3405,ENTERPRISE RENT-A-CAR,425.04,Pound Sterling (826),1.000000000,425.04,Debit,05230657257030075393590,02/10/2017,GLOUCESTER CC
Gloucester City Council,23UE,Business Transformation,BI006,Equipment and Furniture,3001,22/09/2017,22/09/2017,Amazon UK Marketplace,800-279-6620,LUX,L2338,REDACTED,556*********3063,5942,BOOK STORES,34.56,Pound Sterling (826),1.000000000,34.56,Debit,55204727265100893249346,02/10/2017,GLOUCESTER CC
